[Event "3rd FIDE WCCC Rapid U12 2019"]
[Site "Minsk"]
[Date "2019.08.17"]
[Round "5.1"]
[White "Cherniaiev, Tykhon"]
[Black "Sidletskyi, Ivan"]
[Result "1-0"]
[ECO "B24"]
[WhiteElo "2112"]
[BlackElo "1986"]
[Annotator "NA"]
[PlyCount "67"]
[EventDate "2019.08.16"]
[EventType "swiss"]
[EventCountry "BLR"]
[SourceTitle "playchess.com"]
[Source "ChessBase"]
[SourceQuality "1"]
[TimeControl "600+5"]

1. e4 {[%emt 0:00:00]} c5 {[%emt 0:00:00]} 2. Nc3 {[%emt 0:00:07]} Nc6 {[%emt 0:00:00]} 3. Bb5 {[%emt 0:00:04]} Nd4 {[%emt 0:00:00]} 4. Nf3 {[%emt 0:00:02]} g6 {[%emt 0:00:37]} 5. Nxd4 {[%emt 0:01:04]} cxd4 {[%emt 0:00:03]} 6. Ne2 {[%emt 0:00:02]} Bg7 {[%emt 0:00:10]} 7. O-O {[%emt 0:00:06]} a6 {[%emt 0:00:39]} 8. Ba4 {[%emt 0:00:12]} e6 {[%emt 0:00:26]} 9. d3 {[%emt 0:00:17]} Ne7 {[%emt 0:00:57]} 10. Qe1 {[%emt 0:00:50]} O-O {[%emt 0:00:52]} 11. f3 {[%emt 0:00:36]} b5 {[%emt 0:00:11]} 12. Bb3 {[%emt 0:00:02]} d5 {[%emt 0:00:53]} 13. Qh4 {[%emt 0:00:41]} Nc6 {[%emt 0:02:19]} 14. Bg5 {[%emt 0:00:18]} f6 {[%emt 0:00:27]} 15. Bh6 {[%emt 0:00:16]} Ne7 {[%emt 0:00:13]} 16. Bxg7 {[%emt 0:00:40]} Kxg7 {[%emt 0:00:01]} 17. Nxd4 {[%emt 0:00:18]} g5 {[%emt 0:01:00]} 18. Qf2 {[%emt 0:01:21]} Qd6 {[%emt 0:00:07]} 19. c3 {[%emt 0:00:53]} e5 {[%emt 0:00:18]} 20. Nc2 {[%emt 0:00:18]} a5 {[%emt 0:00:15]} 21. a3 {[%emt 0:00:15]} Be6 {[%emt 0:00:19]} 22. Rad1 {[%emt 0:00:23]} Qc7 {[%emt 0:00:41]} 23. d4 {[%emt 0:00:16]} Rad8 {[%emt 0:00:24]} 24. dxe5 {[%emt 0:00:05]} fxe5 {[%emt 0:00:11]} 25. Ne3 {[%emt 0:00:14]} Qd6 {[%emt 0:00:46]} 26. Qg3 {[%emt 0:00:47]} h6 {[%emt 0:00:10]} 27. Bxd5 {[%emt 0:00:14]} Bxd5 {[%emt 0:00:06]} 28. Nxd5 {[%emt 0:00:02]} Qc5+ {[%emt 0:00:02]} 29. Kh1 {[%emt 0:00:03]} Nxd5 {[%emt 0:00:05]} 30. Qxe5+ {[%emt 0:00:05]} Kh7 {[%emt 0:00:08]} 31. Rxd5 {[%emt 0:00:04]} Rxd5 {[%emt 0:00:01]} 32. exd5 {[%emt 0:00:01]} Rd8 {[%emt 0:00:04]} 33. Rd1 {[%emt 0:00:02]} Rd7 {[%emt 0:00:02]} 34. Qf5+ {[%emt 0:00:01]} 1-0

[Event "3rd FIDE WCCC Rapid U12 2019"]
[Site "Minsk"]
[Date "2019.08.17"]
[Round "5.2"]
[White "Ponomarev, Vsevolod"]
[Black "Saveljev, Ivan"]
[Result "1-0"]
[ECO "B33"]
[WhiteElo "1980"]
[BlackElo "2040"]
[Annotator "NA"]
[PlyCount "91"]
[EventDate "2019.08.16"]
[EventType "swiss"]
[EventCountry "BLR"]
[SourceTitle "playchess.com"]
[Source "ChessBase"]
[SourceQuality "1"]
[TimeControl "600+5"]

1. e4 {[%emt 0:00:00]} c5 {[%emt 0:00:00]} 2. Nf3 {[%emt 0:00:00]} Nc6 {[%emt 0:00:00]} 3. d4 {[%emt 0:00:00]} cxd4 {[%emt 0:00:00]} 4. Nxd4 {[%emt 0:00:00]} Nf6 {[%emt 0:00:00]} 5. Nc3 {[%emt 0:00:00]} e5 {[%emt 0:00:00]} 6. Ndb5 {[%emt 0:00:00]} d6 {[%emt 0:00:00]} 7. Bg5 {[%emt 0:00:01]} a6 {[%emt 0:00:01]} 8. Na3 {[%emt 0:00:01]} b5 {[%emt 0:00:01]} 9. Nd5 {[%emt 0:00:01]} Be7 {[%emt 0:00:01]} 10. Bxf6 {[%emt 0:00:01]} Bxf6 {[%emt 0:00:01]} 11. c3 {[%emt 0:00:01]} O-O {[%emt 0:00:05]} 12. Nc2 {[%emt 0:00:01]} Bg5 {[%emt 0:00:09]} 13. a4 {[%emt 0:00:02]} bxa4 {[%emt 0:00:48]} 14. Rxa4 {[%emt 0:00:00]} Kh8 {[%emt 0:00:46]} 15. Qa1 {[%emt 0:01:21]} a5 {[%emt 0:03:07]} 16. Nce3 {[%emt 0:01:17]} Bd7 {[%emt 0:00:45]} 17. Nc4 {[%emt 0:00:47]} f5 {[%emt 0:01:49]} 18. Bd3 {[%emt 0:01:01]} Be6 {[%emt 0:02:00]} 19. O-O {[%emt 0:01:23]} Ne7 {[%emt 0:01:18]} 20. Nxe7 {[%emt 0:01:21]} Bxe7 {[%emt 0:00:01]} 21. Nxa5 {[%emt 0:01:09]} Qc7 {[%emt 0:00:31]} 22. exf5 {[%emt 0:00:32]} Bd7 {[%emt 0:00:07]} 23. Ra2 {[%emt 0:00:03]} d5 {[%emt 0:00:02]} 24. Nb3 {[%emt 0:00:39]} Rxa2 25. Qxa2 {[%emt 0:00:01]} e4 {[%emt 0:00:14]} 26. Be2 {[%emt 0:00:05]} Bxf5 {[%emt 0:00:05]} 27. Nd4 {[%emt 0:00:03]} Bd7 {[%emt 0:00:01]} 28. Qxd5 {[%emt 0:00:03]} Re8 {[%emt 0:00:15]} 29. h3 {[%emt 0:00:59]} Bg5 {[%emt 0:00:05]} 30. Qxg5 {[%emt 0:00:03]} Qb7 {[%emt 0:00:03]} 31. b4 {[%emt 0:00:07]} Qc7 {[%emt 0:00:00]} 32. Qc5 {[%emt 0:00:03]} Qf4 {[%emt 0:00:03]} 33. Bb5 {[%emt 0:00:17]} Rc8 {[%emt 0:00:06]} 34. Qd5 {[%emt 0:00:20]} Bxb5 {[%emt 0:00:09]} 35. Qxb5 {[%emt 0:00:10]} h6 {[%emt 0:00:07]} 36. Ne2 {[%emt 0:00:09]} Qd2 {[%emt 0:00:03]} 37. Qf5 {[%emt 0:00:17]} Re8 {[%emt 0:00:05]} 38. Ng3 {[%emt 0:00:15]} Qd3 {[%emt 0:00:07]} 39. Qg6 {[%emt 0:00:05]} Re7 {[%emt 0:00:08]} 40. Re1 {[%emt 0:00:10]} Qxc3 {[%emt 0:00:02]} 41. Rxe4 {[%emt 0:00:07]} Rxe4 {[%emt 0:00:02]} 42. Qxe4 {[%emt 0:00:02]} Qc7 {[%emt 0:00:03]} 43. b5 {[%emt 0:00:03]} Qb6 {[%emt 0:00:02]} 44. Qc6 {[%emt 0:00:02]} Qd4 {[%emt 0:00:01]} 45. b6 {[%emt 0:00:05]} Qd1+ {[%emt 0:00:02]} 46. Kh2 1-0

[Event "3rd FIDE WCCC Rapid U12 2019"]
[Site "Minsk"]
[Date "2019.08.17"]
[Round "5.3"]
[White "Sahib Singh"]
[Black "Khubukshanov, Erdem"]
[Result "0-1"]
[ECO "B32"]
[WhiteElo "1556"]
[BlackElo "2257"]
[Annotator "NA"]
[PlyCount "162"]
[EventDate "2019.08.16"]
[EventType "swiss"]
[EventCountry "BLR"]
[SourceTitle "playchess.com"]
[Source "ChessBase"]
[SourceQuality "1"]
[TimeControl "600+5"]

1. e4 {[%emt 0:00:00]} c5 {[%emt 0:00:00]} 2. Nf3 {[%emt 0:00:00]} Nc6 {[%emt 0:00:00]} 3. d4 {[%emt 0:00:00]} cxd4 {[%emt 0:00:00]} 4. Nxd4 {[%emt 0:00:00]} Qb6 {[%emt 0:00:00]} 5. Nb3 {[%emt 0:00:02]} Nf6 {[%emt 0:00:00]} 6. Nc3 {[%emt 0:00:01]} e6 {[%emt 0:00:00]} 7. Be3 {[%emt 0:00:01]} Qc7 {[%emt 0:00:01]} 8. a3 {[%emt 0:00:02]} Be7 {[%emt 0:00:18]} 9. Be2 {[%emt 0:00:07] B33: Sicilian: Pelikan and Sveshnikov Variations} O-O {[%emt 0:00:02]} 10. O-O {[%emt 0:00:02]} Rd8 {[%emt 0:00:32]} 11. Bf3 {[%emt 0:00:09]} (11. f4 $14) 11... Ne5 $146 {[%emt 0:00:09]} ({Predecessor:} 11... d6 12. Qd2 Ne5 13. Be2 Bd7 14. f4 Nc4 15. Qc1 Nxe3 16. Qxe3 Bc6 {0-1 (42) Gundogan,C (1816)-Bal,S (1609) Konya 2010}) 12. Bf4 {[%emt 0:00:23]} Nxf3+ {[%emt 0:00:37]} 13. Qxf3 {[%emt 0:00:02]} d6 {[%emt 0:00:01]} 14. Rad1 {[%emt 0:00:07] [#]} e5 $1 {[%emt 0:00:25]} 15. Bg5 {[%emt 0:00:42]} Bg4 {[%emt 0:00:02]} 16. Qg3 {[%emt 0:00:33]} Bxd1 {[%emt 0:00:12]} 17. Rxd1 {[%emt 0:00:01]} Kh8 {[%emt 0:01:09]} 18. Qd3 {[%emt 0:00:33]} Ng8 {[%emt 0:00:17]} 19. Nd5 {[%emt 0:00:07]} Qd7 {[%emt 0:00:01]} 20. Be3 {[%emt 0:00:14]} Nf6 {[%emt 0:00:12]} 21. Nd2 {[%emt 0:00:53]} Nxd5 {[%emt 0:00:20]} 22. Qxd5 {[%emt 0:00:02]} Bf8 {[%emt 0:00:28]} 23. Nf3 {[%emt 0:00:43]} f6 {[%emt 0:01:02]} 24. c4 {[%emt 0:00:11]} Qc6 {[%emt 0:00:11]} 25. Qd3 {[%emt 0:00:09]} Rac8 {[%emt 0:00:54]} 26. b3 {[%emt 0:00:33]} a6 {[%emt 0:00:07]} 27. a4 {[%emt 0:00:43]} Rd7 {[%emt 0:00:21]} 28. a5 {[%emt 0:00:16]} Be7 {[%emt 0:00:13]} 29. Ne1 {[%emt 0:00:37]} Bd8 {[%emt 0:00:53]} 30. Ra1 {[%emt 0:00:26] [#]} f5 $1 {[%emt 0:00:13]} 31. exf5 $19 {[%emt 0:01:35]} d5 {[%emt 0:00:01]} 32. Rd1 {[%emt 0:00:02]} d4 {[%emt 0:00:22]} 33. Bd2 {[%emt 0:00:35]} e4 {[%emt 0:00:11]} 34. Qh3 {[%emt 0:00:09]} e3 {[%emt 0:00:22]} 35. Bb4 {[%emt 0:00:53]} exf2+ {[%emt 0:01:12]} 36. Kxf2 {[%emt 0:00:03]} Bg5 {[%emt 0:00:15]} 37. Nf3 {[%emt 0:00:15]} Be3+ {[%emt 0:00:06]} 38. Kf1 {[%emt 0:00:01]} Qf6 {[%emt 0:00:49]} 39. Rd3 {[%emt 0:00:34]} Rf7 {[%emt 0:00:15]} 40. g4 {[%emt 0:00:09]} Re8 {[%emt 0:00:02]} 41. Be1 {[%emt 0:00:11]} Qc6 {[%emt 0:00:06]} 42. Kg2 {[%emt 0:00:11]} Qe4 {[%emt 0:00:11]} 43. Rxe3 {[%emt 0:00:22]} dxe3 {[%emt 0:00:16]} 44. Kg1 {[%emt 0:00:01]} Qf4 {[%emt 0:00:12]} 45. Kg2 {[%emt 0:00:18]} e2 {[%emt 0:00:10]} 46. Bg3 {[%emt 0:00:22]} Qe4 {[%emt 0:00:01]} 47. Be1 {[%emt 0:00:11]} Rd8 {[%emt 0:00:17]} 48. Kg1 {[%emt 0:00:14]} Qe3+ {[%emt 0:00:06]} 49. Kg2 {[%emt 0:00:02]} Kg8 {[%emt 0:00:09]} 50. Qh4 {[%emt 0:00:04]} Qe7 {[%emt 0:00:13]} 51. Ng5 {[%emt 0:00:05]} h6 {[%emt 0:00:07]} 52. Nxf7 {[%emt 0:00:01]} Qxh4 53. Bxh4 {[%emt 0:00:03]} Kxf7 {[%emt 0:00:03]} 54. Kf2 {[%emt 0:00:02]} Rd3 {[%emt 0:00:08]} 55. b4 {[%emt 0:00:08]} Rd4 {[%emt 0:00:08]} 56. Kxe2 {[%emt 0:00:04]} Rxg4 {[%emt 0:00:02]} 57. Bf2 {[%emt 0:00:05]} Rxc4 {[%emt 0:00:02]} 58. Bc5 {[%emt 0:00:01]} Kf6 {[%emt 0:00:04]} 59. Kf3 {[%emt 0:00:03]} Kxf5 {[%emt 0:00:02]} 60. Bf8 {[%emt 0:00:02]} g5 {[%emt 0:00:03]} 61. Bxh6 {[%emt 0:00:03]} Rxb4 {[%emt 0:00:00]} 62. Bg7 {[%emt 0:00:06]} Rb3+ {[%emt 0:00:01]} 63. Kf2 {[%emt 0:00:01]} Ra3 {[%emt 0:00:01]} 64. Bf8 {[%emt 0:00:03]} Rxa5 65. Bb4 {[%emt 0:00:01]} Rb5 {[%emt 0:00:02]} 66. Bd2 {[%emt 0:00:02]} a5 {[%emt 0:00:00]} 67. Be3 {[%emt 0:00:00]} a4 {[%emt 0:00:01]} 68. Bc1 {[%emt 0:00:01]} Rb3 {[%emt 0:00:01]} 69. Ke2 {[%emt 0:00:02]} b5 70. Kf2 {[%emt 0:00:02]} b4 {[%emt 0:00:03]} 71. Kg2 {[%emt 0:00:02]} a3 {[%emt 0:00:00]} 72. h3 {[%emt 0:00:01]} a2 {[%emt 0:00:01]} 73. Bd2 {[%emt 0:00:05]} a1=Q {[%emt 0:00:04]} 74. Kf2 {[%emt 0:00:02]} Rb2 {[%emt 0:00:01]} 75. Ke3 {[%emt 0:00:02]} Qa7+ {[%emt 0:00:02]} 76. Kd3 {[%emt 0:00:01]} Qd7+ {[%emt 0:00:01]} 77. Kc4 {[%emt 0:00:01]} Qxd2 {[%emt 0:00:01]} 78. Kb5 {[%emt 0:00:01]} Qd5+ {[%emt 0:00:01]} 79. Ka4 {[%emt 0:00:01]} Ra2+ {[%emt 0:00:03]} 80. Kxb4 {[%emt 0:00:01]} Rb2+ {[%emt 0:00:02]} 81. Ka4 {[%emt 0:00:01]} Qa8# {[%emt 0:00:01]} 0-1

[Event "3rd FIDE WCCC Rapid U12 2019"]
[Site "Minsk"]
[Date "2019.08.17"]
[Round "5.4"]
[White "Chyndygyr, Tamerlan"]
[Black "Israfilov, Ali"]
[Result "1-0"]
[ECO "A41"]
[WhiteElo "1984"]
[BlackElo "1857"]
[Annotator "NA"]
[PlyCount "77"]
[EventDate "2019.08.16"]
[EventType "swiss"]
[EventCountry "BLR"]
[SourceTitle "playchess.com"]
[Source "ChessBase"]
[SourceQuality "1"]
[TimeControl "600+5"]

1. d4 {[%emt 0:00:00]} d6 {[%emt 0:00:00]} 2. c4 {[%emt 0:00:00]} c6 {[%emt 0:00:00]} 3. Nc3 {[%emt 0:00:01]} Nd7 {[%emt 0:00:00]} 4. Nf3 {[%emt 0:00:03]} h6 {[%emt 0:00:00]} 5. g3 {[%emt 0:00:05]} g5 {[%emt 0:00:01]} 6. Bg2 {[%emt 0:00:01]} Bg7 {[%emt 0:00:01]} 7. O-O {[%emt 0:00:04]} Qa5 {[%emt 0:00:03]} 8. e4 {[%emt 0:00:20]} g4 {[%emt 0:00:02]} 9. Nh4 {[%emt 0:00:05]} Nf8 10. Be3 {[%emt 0:00:34]} Bf6 {[%emt 0:01:00]} 11. Nf5 {[%emt 0:00:58]} Bxf5 12. exf5 {[%emt 0:00:02]} Qxf5 {[%emt 0:00:20]} 13. b4 {[%emt 0:00:14]} h5 {[%emt 0:00:28]} 14. Be4 {[%emt 0:00:07]} Qd7 {[%emt 0:00:04]} 15. Qc2 {[%emt 0:00:13]} h4 {[%emt 0:00:06]} 16. Bf5 {[%emt 0:00:01]} Qc7 {[%emt 0:01:02]} 17. Bxg4 {[%emt 0:00:02]} hxg3 {[%emt 0:00:01]} 18. hxg3 {[%emt 0:00:03]} Nh6 {[%emt 0:00:36]} 19. Bh3 {[%emt 0:00:43]} Ng6 {[%emt 0:01:17]} 20. Kg2 {[%emt 0:00:11]} Kf8 {[%emt 0:00:32]} 21. Rh1 {[%emt 0:00:11]} e5 {[%emt 0:01:52]} 22. Ne4 {[%emt 0:00:18]} Bg7 {[%emt 0:01:05]} 23. Rad1 {[%emt 0:00:09]} exd4 {[%emt 0:01:15]} 24. Bxd4 {[%emt 0:00:03]} Bxd4 {[%emt 0:00:56]} 25. Rxd4 {[%emt 0:00:02]} Rg8 {[%emt 0:00:33]} 26. Nf6 {[%emt 0:00:16]} Rg7 {[%emt 0:00:17]} 27. Qd2 {[%emt 0:00:07]} Ng8 {[%emt 0:00:24]} 28. Nd7+ {[%emt 0:00:30]} Ke8 {[%emt 0:00:01]} 29. Re1+ {[%emt 0:00:01]} N8e7 {[%emt 0:00:03]} 30. Qh6 {[%emt 0:00:12]} Rg8 {[%emt 0:00:21]} 31. Nf6+ {[%emt 0:00:08]} Kd8 {[%emt 0:00:00]} 32. Nxg8 {[%emt 0:00:09]} Nxg8 {[%emt 0:00:01]} 33. Qg5+ {[%emt 0:00:02]} N8e7 {[%emt 0:00:07]} 34. Bf5 {[%emt 0:00:02]} c5 {[%emt 0:00:05]} 35. Rde4 {[%emt 0:00:08]} Ne5 {[%emt 0:00:09]} 36. Qf6 {[%emt 0:00:44]} Qc6 {[%emt 0:00:09]} 37. b5 {[%emt 0:00:09]} Qe8 {[%emt 0:00:03]} 38. Rxe5 {[%emt 0:00:08]} dxe5 {[%emt 0:00:03]} 39. Rd1+ {[%emt 0:00:01]} 1-0

[Event "3rd FIDE WCCC Rapid U12 2019"]
[Site "Minsk"]
[Date "2019.08.17"]
[Round "5.5"]
[White "Strybuk, Artsiom I"]
[Black "Gavrilov, Maxim"]
[Result "1-0"]
[ECO "D11"]
[WhiteElo "2200"]
[BlackElo "1808"]
[Annotator "NA"]
[PlyCount "149"]
[EventDate "2019.08.16"]
[EventType "swiss"]
[EventCountry "BLR"]
[SourceTitle "playchess.com"]
[Source "ChessBase"]
[SourceQuality "1"]
[TimeControl "600+5"]

1. d4 {[%emt 0:00:00]} d5 {[%emt 0:00:00]} 2. c4 {[%emt 0:00:00]} c6 {[%emt 0:00:00]} 3. Nf3 {[%emt 0:00:01]} Nf6 {[%emt 0:00:03]} 4. e3 {[%emt 0:00:01]} e6 {[%emt 0:00:18]} 5. b3 {[%emt 0:00:01]} Nbd7 {[%emt 0:00:08]} 6. Bb2 {[%emt 0:00:03]} Be7 {[%emt 0:00:17]} 7. Bd3 {[%emt 0:00:05]} O-O {[%emt 0:00:06]} 8. O-O {[%emt 0:00:03]} b6 {[%emt 0:00:06]} 9. Nc3 {[%emt 0:00:07]} Bb7 {[%emt 0:00:03]} 10. Qc2 {[%emt 0:00:06]} h6 {[%emt 0:00:11]} 11. Rad1 {[%emt 0:01:38]} Rc8 {[%emt 0:00:10]} 12. e4 {[%emt 0:01:34]} dxe4 {[%emt 0:00:08]} 13. Nxe4 {[%emt 0:00:01]} Nxe4 {[%emt 0:01:07]} 14. Bxe4 {[%emt 0:00:01]} Nf6 {[%emt 0:00:13]} 15. Bd3 {[%emt 0:00:24]} Qc7 {[%emt 0:00:33]} 16. Rfe1 {[%emt 0:00:20]} c5 {[%emt 0:00:43]} 17. d5 {[%emt 0:00:09]} exd5 {[%emt 0:00:31]} 18. Be5 {[%emt 0:01:00]} Qc6 {[%emt 0:02:06]} 19. cxd5 {[%emt 0:01:09]} Nxd5 {[%emt 0:00:48]} 20. Bh7+ {[%emt 0:00:35]} Kh8 {[%emt 0:00:04]} 21. Be4 {[%emt 0:00:01]} Rcd8 {[%emt 0:00:42]} 22. Qb2 {[%emt 0:01:26]} Rg8 {[%emt 0:02:18]} 23. Rd2 {[%emt 0:01:50]} Qc8 {[%emt 0:00:52]} 24. Red1 {[%emt 0:00:40]} Nf6 {[%emt 0:00:20]} 25. Bxb7 {[%emt 0:00:15]} Qxb7 {[%emt 0:00:02]} 26. h3 {[%emt 0:00:10]} Rxd2 {[%emt 0:00:06]} 27. Rxd2 {[%emt 0:00:10]} Rd8 {[%emt 0:00:08]} 28. Rxd8+ {[%emt 0:00:16]} Bxd8 {[%emt 0:00:01]} 29. Qe2 {[%emt 0:00:08]} Qe4 {[%emt 0:00:11]} 30. Qd1 {[%emt 0:00:07]} Be7 {[%emt 0:00:06]} 31. Bb2 {[%emt 0:00:03]} Qd5 {[%emt 0:00:04]} 32. Qe2 {[%emt 0:00:04]} Qe6 {[%emt 0:00:03]} 33. Qa6 {[%emt 0:00:05]} Qd7 {[%emt 0:00:07]} 34. Qe2 {[%emt 0:00:08]} Qe6 {[%emt 0:00:02]} 35. Qc2 {[%emt 0:00:05]} Qe4 {[%emt 0:00:04]} 36. Qd2 {[%emt 0:00:02]} Qd5 {[%emt 0:00:03]} 37. Bxf6 {[%emt 0:00:08]} Qxd2 {[%emt 0:00:05]} 38. Bxg7+ {[%emt 0:00:01]} Kxg7 39. Nxd2 {[%emt 0:00:00]} Bf6 {[%emt 0:00:08]} 40. Kf1 {[%emt 0:00:02]} Bd4 {[%emt 0:00:02]} 41. Ke2 {[%emt 0:00:01]} Kf6 {[%emt 0:00:04]} 42. f4 {[%emt 0:00:07]} Kf5 {[%emt 0:00:11]} 43. Kf3 {[%emt 0:00:02]} b5 {[%emt 0:00:10]} 44. g4+ {[%emt 0:00:04]} Ke6 {[%emt 0:00:01]} 45. Ke4 {[%emt 0:00:01]} a5 {[%emt 0:00:07]} 46. a4 {[%emt 0:00:02]} bxa4 {[%emt 0:00:03]} 47. bxa4 {[%emt 0:00:02]} Bc3 {[%emt 0:00:05]} 48. Nc4 {[%emt 0:00:13]} Bb4 {[%emt 0:00:04]} 49. h4 {[%emt 0:00:14]} Kf6 {[%emt 0:00:06]} 50. h5 {[%emt 0:00:01]} Kg7 {[%emt 0:00:05]} 51. Nd6 {[%emt 0:00:16]} Bd2 {[%emt 0:00:05]} 52. Nb7 {[%emt 0:00:07]} Bb4 {[%emt 0:00:09]} 53. Kd5 {[%emt 0:00:04]} Bd2 {[%emt 0:00:07]} 54. Kxc5 {[%emt 0:00:05]} Bxf4 55. Nxa5 Kf6 {[%emt 0:00:05]} 56. Nc6 {[%emt 0:00:11]} Kg5 {[%emt 0:00:04]} 57. a5 {[%emt 0:00:02]} Be3+ {[%emt 0:00:07]} 58. Nd4 {[%emt 0:00:05]} Bf4 {[%emt 0:00:06]} 59. a6 {[%emt 0:00:02]} Bb8 {[%emt 0:00:02]} 60. Nc6 {[%emt 0:00:00]} Kxg4 {[%emt 0:00:11]} 61. Nxb8 {[%emt 0:00:02]} Kxh5 62. a7 Kg4 {[%emt 0:00:05]} 63. a8=Q {[%emt 0:00:01]} h5 {[%emt 0:00:00]} 64. Qg2+ {[%emt 0:00:01]} Kf5 {[%emt 0:00:02]} 65. Nc6 {[%emt 0:00:02]} h4 {[%emt 0:00:02]} 66. Qh3+ {[%emt 0:00:01]} Kg5 {[%emt 0:00:01]} 67. Ne5 {[%emt 0:00:00]} f5 {[%emt 0:00:01]} 68. Nf3+ {[%emt 0:00:01]} Kg6 {[%emt 0:00:03]} 69. Nxh4+ {[%emt 0:00:01]} Kg5 {[%emt 0:00:00]} 70. Nxf5 {[%emt 0:00:02]} Kf4 {[%emt 0:00:02]} 71. Kd5 {[%emt 0:00:01]} Kg5 {[%emt 0:00:01]} 72. Ke5 {[%emt 0:00:01]} Kg6 {[%emt 0:00:02]} 73. Qh6+ {[%emt 0:00:01]} Kf7 {[%emt 0:00:01]} 74. Qg7+ {[%emt 0:00:00]} Ke8 {[%emt 0:00:00]} 75. Qe7# {[%emt 0:00:01]} 1-0

[Event "3rd FIDE WCCC Rapid U12 2019"]
[Site "Minsk"]
[Date "2019.08.17"]
[Round "5.6"]
[White "Mochalov, Dmitriy"]
[Black "Kurchenko, Egor"]
[Result "1-0"]
[ECO "C67"]
[WhiteElo "1852"]
[BlackElo "1850"]
[Annotator "NA"]
[PlyCount "99"]
[EventDate "2019.08.16"]
[EventType "swiss"]
[EventCountry "BLR"]
[SourceTitle "playchess.com"]
[Source "ChessBase"]
[SourceQuality "1"]
[TimeControl "600+5"]

1. e4 {[%emt 0:00:00]} e5 {[%emt 0:00:00]} 2. Nf3 {[%emt 0:00:03]} Nc6 {[%emt 0:00:00]} 3. Bb5 {[%emt 0:00:09]} Nf6 {[%emt 0:00:01]} 4. O-O {[%emt 0:00:10]} Nxe4 {[%emt 0:00:14]} 5. d4 {[%emt 0:00:13]} Nd6 {[%emt 0:00:05]} 6. Bxc6 {[%emt 0:00:08]} dxc6 {[%emt 0:00:02]} 7. dxe5 {[%emt 0:00:09]} Nf5 {[%emt 0:00:01]} 8. Qxd8+ Kxd8 {[%emt 0:00:02]} 9. c4 {[%emt 0:01:20]} Ke8 {[%emt 0:00:58]} 10. b3 {[%emt 0:00:12]} Be7 {[%emt 0:00:22]} 11. Bb2 {[%emt 0:00:04]} Be6 {[%emt 0:00:07]} 12. Nc3 {[%emt 0:00:06]} h5 {[%emt 0:02:21]} 13. Ne4 {[%emt 0:00:20]} Rh6 {[%emt 0:01:37]} 14. Kh1 {[%emt 0:00:40]} Rd8 {[%emt 0:00:21]} 15. Rad1 {[%emt 0:00:05]} Rxd1 {[%emt 0:00:07]} 16. Rxd1 {[%emt 0:00:01]} Rg6 {[%emt 0:00:47]} 17. h3 {[%emt 0:00:15]} Nh4 {[%emt 0:00:28]} 18. Nxh4 {[%emt 0:00:06]} Bxh4 {[%emt 0:00:01]} 19. Bd4 {[%emt 0:00:27]} b6 {[%emt 0:00:44]} 20. Kh2 {[%emt 0:01:29]} Be7 {[%emt 0:00:50]} 21. Be3 {[%emt 0:00:12]} f6 {[%emt 0:00:40]} 22. exf6 gxf6 {[%emt 0:00:01]} 23. Bf4 {[%emt 0:01:29]} f5 {[%emt 0:00:25]} 24. Nc3 {[%emt 0:00:18]} Bf6 {[%emt 0:00:08]} 25. Ne2 {[%emt 0:00:03]} Rg7 {[%emt 0:00:07]} 26. Rd3 {[%emt 0:00:48]} Rd7 {[%emt 0:00:28]} 27. Nc1 {[%emt 0:00:13]} Rxd3 28. Nxd3 {[%emt 0:00:01]} Kd7 {[%emt 0:00:23]} 29. Be5 {[%emt 0:00:09]} Bg5 {[%emt 0:00:35]} 30. f4 {[%emt 0:01:00]} Be7 {[%emt 0:00:05]} 31. Kg3 {[%emt 0:00:06]} h4+ {[%emt 0:00:13]} 32. Kf3 {[%emt 0:00:00]} Bf7 {[%emt 0:00:02]} 33. Ke3 {[%emt 0:00:37]} b5 {[%emt 0:00:20]} 34. Kd4 {[%emt 0:00:33]} bxc4 35. bxc4 {[%emt 0:00:01]} Be6 {[%emt 0:00:10]} 36. a4 {[%emt 0:00:08]} Bd6 {[%emt 0:00:03]} 37. a5 {[%emt 0:00:13]} Bxe5+ {[%emt 0:00:03]} 38. Nxe5+ {[%emt 0:00:09]} Kc8 {[%emt 0:00:09]} 39. a6 {[%emt 0:00:08]} c5+ {[%emt 0:00:06]} 40. Kxc5 {[%emt 0:00:04]} Bg8 {[%emt 0:00:03]} 41. Nf3 {[%emt 0:00:03]} Kd7 {[%emt 0:00:03]} 42. Nxh4 {[%emt 0:00:02]} Be6 {[%emt 0:00:03]} 43. Nf3 {[%emt 0:00:02]} Ke7 {[%emt 0:00:05]} 44. Ne5 {[%emt 0:00:03]} Kd8 {[%emt 0:00:03]} 45. Nc6+ {[%emt 0:00:01]} Kd7 {[%emt 0:00:02]} 46. Nxa7 {[%emt 0:00:03]} Bf7 {[%emt 0:00:06]} 47. Nc6 {[%emt 0:00:03]} Kc8 {[%emt 0:00:03]} 48. g4 {[%emt 0:00:06]} Be6 {[%emt 0:00:04]} 49. gxf5 {[%emt 0:00:02]} Bxf5 {[%emt 0:00:02]} 50. Ne7+ {[%emt 0:00:00]} 1-0

[Event "3rd FIDE WCCC Rapid U12 2019"]
[Site "Minsk"]
[Date "2019.08.17"]
[Round "6.1"]
[White "Ponomarev, Vsevolod"]
[Black "Cherniaiev, Tykhon"]
[Result "0-1"]
[ECO "C47"]
[WhiteElo "1980"]
[BlackElo "2112"]
[Annotator "ChessBase"]
[PlyCount "74"]
[EventDate "2019.08.16"]
[EventType "swiss"]
[EventCountry "BLR"]
[SourceTitle "playchess.com"]
[Source "ChessBase"]
[SourceQuality "1"]
[TimeControl "600+5"]

1. e4 {[%emt 0:00:00]} e5 {[%emt 0:00:00]} 2. Nf3 {[%emt 0:00:00]} Nc6 {[%emt 0:00:00]} 3. Nc3 {[%emt 0:00:00]} Nf6 {[%emt 0:01:28]} 4. d4 {[%emt 0:00:00]} exd4 {[%emt 0:00:20]} 5. Nxd4 {[%emt 0:00:01]} d6 {[%emt 0:00:07]} 6. f3 {[%emt 0:00:27]} g6 {[%emt 0:00:16]} 7. Be3 {[%emt 0:00:22]} Bg7 {[%emt 0:00:05]} 8. Qd2 {[%emt 0:00:22]} O-O {[%emt 0:00:09]} 9. g4 {[%emt 0:00:22]} Ne5 {[%emt 0:00:39]} 10. Be2 {[%emt 0:01:03]} d5 {[%emt 0:00:43]} 11. g5 {[%emt 0:00:35]} Nh5 {[%emt 0:00:47]} 12. exd5 {[%emt 0:00:41]} Bh3 {[%emt 0:00:08]} 13. O-O-O {[%emt 0:00:25]} Re8 {[%emt 0:00:35]} 14. Rhg1 {[%emt 0:00:54]} Qe7 {[%emt 0:00:41]} 15. Bf2 {[%emt 0:00:44]} Nd7 {[%emt 0:01:17]} 16. f4 {[%emt 0:00:31]} Nc5 {[%emt 0:00:38]} 17. Bxh5 {[%emt 0:01:07]} gxh5 {[%emt 0:00:02]} 18. f5 {[%emt 0:01:11]} Ne4 {[%emt 0:00:10]} 19. Qe3 {[%emt 0:01:02]} Bg4 {[%emt 0:01:49]} 20. f6 {[%emt 0:00:40]} Qe5 {[%emt 0:00:32]} 21. Rde1 {[%emt 0:00:30]} Nxf2 {[%emt 0:00:33]} 22. Qxe5 {[%emt 0:00:15]} Rxe5 {[%emt 0:00:01]} 23. Rxe5 {[%emt 0:00:03]} Bf8 {[%emt 0:00:12]} 24. Ndb5 {[%emt 0:00:15]} c6 {[%emt 0:00:24]} 25. dxc6 {[%emt 0:00:10]} bxc6 {[%emt 0:00:01]} 26. Na3 Bd6 {[%emt 0:00:03]} 27. Ra5 {[%emt 0:00:18]} Bxh2 {[%emt 0:00:05]} 28. Re1 {[%emt 0:00:02]} Bf4+ {[%emt 0:00:14]} 29. Kb1 {[%emt 0:00:01]} h4 {[%emt 0:00:01]} 30. Ne4 {[%emt 0:00:07]} Re8 {[%emt 0:00:10]} 31. Rxa7 {[%emt 0:00:06]} Nxe4 {[%emt 0:00:10]} 32. Rxe4 {[%emt 0:00:05]} Rd8 {[%emt 0:00:01]} 33. Re1 {[%emt 0:00:09]} Bg3 {[%emt 0:00:04]} 34. Rae7 {[%emt 0:00:10]} Bxe1 35. Rxe1 {[%emt 0:00:01]} Rd1+ {[%emt 0:00:06]} 36. Rxd1 {[%emt 0:00:01]} Bxd1 {[%emt 0:00:01]} 37. Kc1 {[%emt 0:00:07]} h3 {[%emt 0:00:02]} 0-1